bitfinex/quotes_ETHUSD_20230117
["timestamp","ask_amount","ask_price","bid_price","bid_amount"]
[1673959813105,27.60046,1568.8,1568.7,0.8537812]
[1673959813318,28.55103622,1568.8,1568.7,0.8537812]
[1673959813730,27.60046,1568.8,1568.7,0.8537812]
[1673959814364,28.55103622,1568.8,1568.7,0.8537812]
[1673959816451,27.60046,1568.8,1568.7,0.8537812]
[1673959818556,28.55103622,1568.8,1568.7,0.8537812]
[1673959820377,29.98005247,1568.8,1568.7,0.8537812]
[1673959820590,28.55103622,1568.8,1568.7,0.8537812]
[1673959822076,27.09203622,1568.8,1568.7,0.8537812]
[1673959822395,26.51373622,1568.8,1568.7,0.8537812]
[1673959823360,19.18887,1568.8,1568.7,0.8537812]
[1673959823563,20.13944622,1568.8,1568.7,0.8537812]
[1673959823772,13.76515622,1568.8,1568.7,0.8537812]
[1673959824109,12.81458,1568.8,1568.7,0.8537812]
[1673959824264,13.76515622,1568.8,1568.7,0.8537812]
[1673959824476,15.19417247,1568.8,1568.7,0.8537812]
[1673959824828,21.56846247,1568.8,1568.7,0.8537812]
[1673959825140,21.51846247,1568.8,1568.7,0.8537812]
[1673959825627,20.08944622,1568.8,1568.7,0.8537812]
[1673959825840,20.08944622,1568.8,1568.7,0.93992847]
[1673959826257,7.34086622,1568.8,1568.7,0.93992847]
[1673959827094,20.08944622,1568.8,1568.7,0.93992847]
[1673959827456,20.08944622,1568.8,1568.7,0.8537812]
[1673959827927,7.34086622,1568.8,1568.7,0.8537812]
[1673959828328,1.01657622,1568.8,1568.7,0.8537812]
[1673959828465,13.76458622,1568.9,1568.7,0.8537812]
[1673959828666,7.39048622,1568.9,1568.8,1.11037812]
[1673959829125,7.86892625,1568.9,1568.8,1.11037812]
[1673959829556,8.822346,1568.9,1568.8,1.11037812]
[1673959829931,7.39332975,1568.9,1568.8,0.08537812]
[1673959830468,8.822346,1568.9,1568.8,0.08537812]
[1673959830695,1.01941975,1568.9,1568.8,1.11037812]
[1673959830865,0.95341975,1568.9,1568.8,1.11037812]
[1673959831206,8.8319837,1569.0,1568.8,1.11037812]
[1673959831552,1.02922745,1569.0,1568.9,1.13603781]
[1673959831713,0.96322745,1569.0,1568.9,1.13603781]
[1673959832417,0.0098077,1569.0,1568.9,1.13603781]
[1673959832712,0.96322745,1569.0,1568.9,1.13603781]
[1673959833493,0.0098077,1569.0,1568.9,1.13603781]
[1673959835916,0.0098077,1569.0,1568.9,4.25266188]
[1673959836121,0.0098077,1569.0,1568.9,12.08655188]
[1673959836386,2.382436,1569.2,1568.9,18.52644188]
[1673959836728,2.382436,1569.2,1569.0,1.85264419]
[1673959838331,0.95341975,1569.2,1569.0,1.85264419]
[1673959839382,0.95341975,1569.2,1569.0,2.85264419]
[1673959840006,0.95341975,1569.2,1569.0,1.85264419]
[1673959841379,15.193156,1569.3,1569.0,1.85264419]
[1673959841593,15.193156,1569.3,1569.1,0.18526442]
[1673959843320,13.76413975,1569.3,1569.1,0.18526442]
[1673959843480,7.39171975,1569.3,1569.1,0.18526442]
[1673959845620,1.01941975,1569.3,1569.1,0.18526442]
[1673959845793,0.95341975,1569.3,1569.1,1.64526442]
[1673959846156,0.95341975,1569.3,1569.2,1.18952644]
[1673959846688,2.382436,1569.3,1569.2,0.16452644]
[1673959846902,2.382436,1569.3,1569.1,1.64526442]
[1673959847050,8.754696,1569.3,1569.1,1.64526442]
[1673959847431,7.39167975,1569.3,1569.1,1.64526442]
[1673959848262,8.820696,1569.3,1569.1,0.18526442]
[1673959848479,0.95341975,1569.2,1568.9,23.39322407]
[1673959848668,6.37308,1569.1,1568.9,20.2766]
[1673959848881,6.43908,1569.1,1568.9,20.2766]
[1673959851100,12.81216,1569.1,1568.9,20.2766]
[1673959851423,15.92230935,1569.1,1568.9,20.2766]
[1673959852246,13.76557975,1569.1,1568.9,20.2766]
[1673959852479,6.43908,1569.1,1568.9,20.2766]
[1673959852782,0.066,1569.1,1568.9,20.2766]
[1673959853003,7.87031975,1569.2,1568.9,20.2766]
[1673959853606,7.39211975,1569.2,1568.9,20.2766]
[1673959853860,7.39211975,1569.2,1568.9,22.30426]
[1673959854688,6.4387,1569.2,1568.9,22.30426]
[1673959854969,7.39211975,1569.2,1568.9,22.30426]
[1673959857728,1.01941975,1569.2,1568.9,25.42088407]
[1673959857918,0.95341975,1569.2,1568.9,31.79469407]
[1673959858123,0.95341975,1569.2,1569.0,3.17946941]
[1673959859766,8.755236,1569.2,1568.9,22.30426]
[1673959860068,8.821236,1569.2,1568.9,22.30426]
[1673959860432,0.95341975,1569.1,1568.9,22.30426]
[1673959861164,8.755566,1569.1,1568.9,20.27415525]
[1673959861370,0.95341975,1569.0,1568.9,20.27415525]
[1673959862267,0.95341975,1569.0,1568.9,0.066]
[1673959862482,0.95341975,1569.0,1568.8,6.44022]
[1673959862640,0.95341975,1569.0,1568.8,9.55684407]
[1673959864228,0.95341975,1569.0,1568.8,12.0188426]
[1673959865926,2.382436,1569.0,1568.8,0.066]
[1673959866264,2.382436,1569.0,1568.7,0.9197812]
[1673959866477,0.95341975,1568.8,1568.7,0.8537812]
[1673959866686,13.70199975,1568.8,1568.7,0.8537812]
[1673959866993,15.197016,1568.8,1568.7,0.8537812]
[1673959867231,16.59153326,1568.8,1568.7,0.8537812]
[1673959868193,17.54466302,1568.8,1568.7,0.8537812]
[1673959868866,23.91895302,1568.8,1568.7,0.8537812]
[1673959869904,24.87190732,1568.8,1568.7,0.8537812]
[1673959871275,23.91895302,1568.8,1568.7,0.8537812]
[1673959871837,22.96582326,1568.8,1568.7,0.8537812]
[1673959872055,23.91868287,1568.8,1568.7,0.8537812]
[1673959872933,22.96815085,1568.8,1568.7,0.8537812]
[1673959873139,24.87625496,1568.8,1568.7,0.8537812]
[1673959874195,24.42815085,1568.8,1568.7,0.8537812]
[1673959874406,24.90723871,1568.8,1568.7,0.8537812]
[1673959874615,25.86122971,1568.8,1568.7,0.8537812]
[1673959875248,32.47785378,1568.8,1568.7,0.8537812]
[1673959875461,30.42285378,1568.8,1568.7,0.8537812]
[1673959877613,31.06919296,1568.8,1568.7,0.8537812]
[1673959878410,32.9699202,1568.8,1568.7,0.8537812]
[1673959879191,32.96843479,1568.8,1568.7,0.7716812]
[1673959879344,31.29919296,1568.8,1568.7,0.7716812]
[1673959879554,33.19860187,1568.8,1568.7,0.7716812]
[1673959880010,36.19566721,1568.8,1568.7,0.7716812]
[1673959880198,33.8118721,1568.8,1568.7,0.7716812]
[1673959880436,36.19566721,1568.8,1568.7,0.7716812]
[1673959881289,33.8118721,1568.8,1568.7,0.7716812]
[1673959881529,34.2962583,1568.8,1568.7,0.7716812]
[1673959882008,34.74941776,1568.8,1568.7,0.7716812]
[1673959883263,35.8512583,1568.8,1568.7,0.7716812]
[1673959883467,35.13541016,1568.8,1568.7,0.7716812]
[1673959883823,37.51920527,1568.8,1568.7,0.7716812]
[1673959884139,35.13541016,1568.8,1568.7,0.7716812]
[1673959884452,37.51920527,1568.8,1568.7,0.7716812]
[1673959884842,35.6212583,1568.8,1568.7,0.7716812]
[1673959885032,32.62419296,1568.8,1568.7,0.7716812]
[1673959885235,32.62419296,1568.8,1568.7,1.2e-06]
[1673959885236,39.12127833,1568.8,1568.7,1.2e-06]
[1673959885466,44.61075077,1568.8,1568.7,1.2e-06]
[1673959886238,45.50052377,1568.8,1568.7,1.2e-06]
[1673959886760,42.47038948,1568.8,1568.7,1.2e-06]
[1673959887010,44.85418459,1568.8,1568.7,1.2e-06]
[1673959887126,42.47038948,1568.8,1568.7,1.2e-06]
[1673959887332,44.85418459,1568.8,1568.7,1.2e-06]
[1673959887542,42.47038948,1568.8,1568.7,1.2e-06]
[1673959888917,43.89327491,1568.8,1568.7,1.2e-06]
[1673959889128,43.89328914,1568.8,1568.7,1.2e-06]
[1673959889446,45.50052377,1568.8,1568.7,1.2e-06]
[1673959889866,43.11672866,1568.8,1568.7,1.2e-06]
[1673959890292,40.11964329,1568.8,1568.7,1.2e-06]
[1673959891535,41.5423937,1568.8,1568.7,1.2e-06]
[1673959893242,40.11964329,1568.8,1568.7,1.2e-06]
[1673959894086,41.54280498,1568.8,1568.7,1.2e-06]
[1673959894300,41.06450498,1568.8,1568.7,1.2e-06]
[1673959894716,43.51021084,1568.8,1568.7,1.2e-06]
[1673959895168,41.6136654,1568.8,1568.7,1.2e-06]
[1673959896585,42.22705787,1568.8,1568.7,1.2e-06]
[1673959896852,44.60059824,1568.8,1568.7,1.2e-06]
[1673959897232,42.22705787,1568.8,1568.7,1.2e-06]
[1673959897879,41.45028543,1568.8,1568.7,1.2e-06]
[1673959899106,49.25826814,1568.8,1568.6,0.0006927]
[1673959899321,49.25826814,1568.8,1568.5,0.16948778]
[1673959899322,1.0013073,1568.6,1568.5,0.16948778]
[1673959899605,34.89943828,1568.6,1568.5,0.16948778]
[1673959899900,38.61156379,1568.6,1568.5,0.16948778]
[1673959900268,39.73671055,1568.6,1568.5,0.16948778]
[1673959900480,1.0,1568.5,1568.3,0.18071266]
[1673959900747,32.94512742,1568.4,1568.3,0.18071266]
[1673959900955,33.48593079,1568.4,1568.3,0.18071266]
[1673959901276,36.98593079,1568.4,1568.3,0.18071266]
[1673959901426,10.21432128,1568.3,1567.9,0.25466106]
[1673959901640,5.49017646,1568.1,1567.9,0.18866106]
[1673959901857,24.62660913,1568.0,1567.9,0.18866106]
[1673959902080,27.21794735,1568.0,1567.9,0.18866106]
[1673959902311,33.06588436,1568.0,1567.9,0.18866106]
[1673959903756,30.07375582,1568.0,1567.9,0.18866106]
[1673959904174,30.55235582,1568.0,1567.9,0.18866106]
[1673959904380,29.60413867,1568.0,1567.9,0.18866106]
[1673959904603,32.00235582,1568.0,1567.9,0.18866106]
[1673959904789,32.648695,1568.0,1567.9,0.18866106]
[1673959905003,34.07276828,1568.0,1567.5,9.3326]
[1673959905329,12.75834,1567.6,1567.5,0.066]
[1673959905540,11.87452572,1567.6,1567.2,11.6139]
[1673959905774,13.33152572,1567.6,1567.2,11.6139]
[1673959906310,16.44814979,1567.6,1567.2,0.066]
[1673959906467,16.45047738,1567.6,1567.1,10.63255282]
[1673959906684,1.46,1567.5,1567.1,10.63255282]
[1673959907011,1.46,1567.5,1567.1,1.36595282]
[1673959907012,1.457,1567.2,1567.1,1.36595282]
[1673959907239,6.03595166,1567.2,1567.1,1.29995282]
[1673959907413,26.12069084,1567.2,1567.1,1.29995282]
[1673959907627,29.12069084,1567.2,1567.1,1.29995282]
[1673959907885,35.22098639,1567.2,1567.1,1.29995282]
[1673959908201,35.22098639,1567.2,1566.8,0.04467804]
[1673959908202,19.14606,1566.9,1566.8,0.04467804]
[1673959908364,34.85770407,1566.9,1566.8,0.04467804]
[1673959908571,35.50637084,1566.9,1566.8,0.04467804]
[1673959908820,39.00637084,1566.9,1566.8,8.04e-06]
[1673959908993,64.94293936,1566.9,1566.0,0.06]
[1673959909201,64.94293936,1566.9,1565.8,0.0059279]
[1673959909202,1.46,1566.4,1565.8,0.0059279]
[1673959909470,0.066,1566.5,1566.4,1.45999999]
[1673959909649,13.81556105,1566.8,1566.4,1.45999999]
[1673959909650,6.44849,1566.8,1566.4,1.45999999]
[1673959909828,0.066,1566.8,1566.4,1.45999999]
[1673959910089,6.45034759,1566.9,1566.4,1.60599999]
[1673959910300,6.45034759,1566.9,1566.4,1.45999999]
[1673959910301,11.02697166,1566.9,1566.4,1.45999999]
[1673959910517,0.066,1566.9,1566.4,1.45999999]
[1673959910726,0.27082325,1567.0,1566.5,1.0]
[1673959911037,0.20482325,1567.0,1566.5,1.0]
[1673959911247,0.20482325,1567.0,1566.8,1.46]
[1673959911409,0.20482325,1567.0,1566.9,1.606]
[1673959911834,0.20482325,1567.0,1566.9,2.145]
[1673959912471,0.20482325,1567.0,1566.9,3.145]
[1673959912668,0.20482325,1567.0,1566.9,2.145]
[1673959912886,0.20482325,1567.0,1566.8,0.066]
[1673959913139,0.20482325,1567.0,1566.6,10.9623]
[1673959913597,0.20482325,1567.0,1566.7,1.0]
[1673959913761,0.20482325,1567.0,1566.6,10.9623]
[1673959914502,0.20482325,1567.0,1566.7,1.0]
[1673959914709,0.20482325,1567.0,1566.7,1.19623]
[1673959914917,3.11662407,1566.9,1566.6,1.526]
[1673959915133,1.46032759,1566.9,1566.5,10.7573]
[1673959915383,0.00232759,1566.9,1566.5,0.066]
[1673959915600,0.27082325,1567.0,1566.6,1.0]
[1673959915743,0.20482325,1567.0,1566.7,0.1]
[1673959916492,0.20482325,1567.0,1566.5,10.8233]
[1673959916846,6.58653325,1567.0,1566.6,4.46]
[1673959917041,6.65486084,1567.0,1566.6,3.0]
[1673959917213,16.15319491,1567.0,1566.6,3.0]
[1673959917427,6.65486084,1567.0,1566.6,3.0]
[1673959917636,6.65253325,1567.0,1566.7,0.3]
[1673959918056,0.27082325,1567.0,1566.7,0.3]
[1673959918390,0.20482325,1567.0,1566.7,0.3]
[1673959918796,0.20482325,1567.0,1566.7,1.76]
[1673959919583,0.20482325,1567.0,1566.7,12.25943407]
[1673959919759,0.20482325,1567.0,1566.8,2.67494341]
[1673959919965,0.20482325,1567.0,1566.8,3.67494341]
[1673959920166,0.20482325,1567.0,1566.8,2.67494341]
[1673959921002,0.20482325,1567.0,1566.8,1.22594341]
[1673959921633,0.15482325,1567.0,1566.8,1.22594341]
[1673959922092,0.15482325,1567.0,1566.9,2.12159434]
[1673959923226,0.15482325,1567.0,1566.9,1.999]
[1673959923423,0.15482325,1567.0,1566.8,1.29194341]
[1673959923634,0.15482325,1567.0,1566.8,1.22594341]
[1673959925055,6.53646325,1567.0,1566.7,0.366]
[1673959925206,12.98410325,1567.0,1566.6,8.8672]
[1673959926171,4.11662407,1566.9,1566.6,0.066]
[1673959926376,14.22486,1566.8,1566.5,10.8233]
[1673959926587,14.70252241,1566.8,1566.5,10.8233]
[1673959926889,0.00232759,1566.7,1566.5,0.066]
[1673959927128,0.00232759,1566.7,1566.4,1.45999999]
[1673959927129,6.38539759,1566.7,1566.4,1.45999999]
[1673959927341,6.45139759,1566.7,1566.4,1.45999999]
[1673959927569,15.00794651,1566.7,1566.4,1.45999999]
[1673959927774,18.60357058,1566.7,1566.4,1.45999999]
[1673959928300,20.06157058,1566.7,1566.4,1.45999999]
[1673959928753,12.7673,1566.5,1566.4,1.45999999]
[1673959928976,12.8333,1566.5,1566.4,1.45999999]
[1673959929159,15.000969,1566.5,1566.4,1.45999999]
[1673959929371,18.11992066,1566.5,1566.4,1.45999999]
[1673959929762,8.61964659,1566.5,1566.4,1.45999999]
[1673959929985,18.11992066,1566.5,1566.4,1.45999999]
[1673959930831,15.00329659,1566.5,1566.4,1.45999999]
[1673959931690,8.617319,1566.5,1566.4,1.45999999]
[1673959931898,6.44965,1566.5,1566.4,1.45999999]
[1673959932801,0.066,1566.5,1566.4,1.45999999]
[1673959933015,6.44895,1566.7,1566.4,1.45999999]
[1673959933609,0.066,1566.7,1566.4,1.45999999]
[1673959933814,6.44874,1566.8,1566.4,1.45999999]
[1673959933961,6.44874,1566.8,1566.4,2.49674599]
[1673959934166,0.066,1566.8,1566.4,2.49674599]
[1673959934431,6.44824,1566.9,1566.4,2.49674599]
[1673959934961,12.83048,1566.9,1566.4,2.49674599]
[1673959935324,1.0,1566.8,1566.4,1.45999999]
[1673959935595,1.4789,1566.8,1566.4,1.45999999]
[1673959935745,19.14876,1566.7,1566.4,1.45999999]
[1673959936174,12.83184,1566.7,1566.4,1.45999999]
[1673959940235,6.44892,1566.7,1566.4,1.45999999]
[1673959940438,0.066,1566.7,1566.4,1.60599999]
[1673959940611,6.86141,1566.8,1566.4,7.99004999]
[1673959940612,6.44851,1566.8,1566.4,7.99004999]
[1673959940824,6.44851,1566.8,1566.4,11.17267406]
[1673959940825,0.066,1566.8,1566.4,11.17267406]
[1673959941039,0.066,1566.9,1566.6,1.46]
[1673959941345,6.53645325,1567.0,1566.6,7.84311]
[1673959941699,6.53645325,1567.0,1566.6,3.56691341]
[1673959941700,12.98408325,1567.0,1566.6,3.56691341]
[1673959941916,12.98408325,1567.0,1566.5,4.516]
[1673959941917,19.36571325,1567.0,1566.5,4.516]
[1673959942240,0.94410732,1566.8,1566.4,21.06329999]
[1673959942381,19.14789,1566.8,1566.4,12.13189999]
[1673959942594,19.21389,1566.8,1566.4,12.13189999]
[1673959943236,21.27757973,1566.8,1566.4,12.13189999]
[1673959944274,23.63784803,1566.8,1566.4,12.13189999]
[1673959944485,22.22168705,1566.8,1566.4,12.13189999]
[1673959945955,22.22168705,1566.8,1566.4,12.12932336]
[1673959946269,2.15569137,1566.7,1566.4,12.12932336]
[1673959946515,15.1915283,1566.8,1566.4,12.12932336]
[1673959946850,2.15566841,1566.7,1566.4,12.12932336]
[1673959947159,7.39253732,1566.8,1566.4,12.12932336]
[1673959947372,1.01010732,1566.8,1566.4,18.51334336]
[1673959947587,1.01010732,1566.9,1566.6,1.46]
[1673959947737,2.58109155,1567.0,1566.7,1.456]
[1673959947944,2.51509155,1567.0,1566.7,1.456]
[1673959948413,1.09893057,1567.0,1566.7,1.456]
[1673959948624,1.09893057,1567.0,1566.7,7.83881]
[1673959948787,1.09893057,1567.0,1566.8,0.783881]
[1673959949456,2.51509155,1567.0,1566.7,1.456]
[1673959949631,2.15568984,1566.9,1566.6,4.64262407]
[1673959949839,2.15568984,1566.9,1566.6,4.57662407]
[1673959952253,8.53771984,1566.9,1566.6,1.46]
[1673959952512,1.01010732,1566.9,1566.6,3.11662407]
[1673959952841,0.94410732,1566.9,1566.7,0.31166241]
[1673959953006,2.15596587,1566.9,1566.5,14.10583434]
[1673959953215,8.53804587,1566.9,1566.5,14.10583434]
[1673959953412,7.39218732,1566.9,1566.5,14.10583434]
[1673959953941,13.77426732,1566.9,1566.5,14.10583434]
[1673959954376,15.1904283,1566.9,1566.5,14.10583434]
[1673959954612,13.77420732,1566.9,1566.5,14.10583434]
[1673959954956,21.5724483,1566.9,1566.5,14.10583434]
[1673959955310,2.15583854,1566.8,1566.5,14.10583434]
[1673959955625,8.53848854,1566.8,1566.5,14.10583434]
[1673959955848,13.77540732,1566.8,1566.5,14.10583434]
[1673959956087,7.39275732,1566.8,1566.5,4.91733434]
[1673959956322,6.44865,1566.8,1566.5,5.85133434]
[1673959956495,7.39275732,1566.8,1566.5,5.91733434]
[1673959956705,6.44865,1566.8,1566.5,5.91733434]
[1673959956887,6.44865,1566.8,1566.5,4.91733434]
[1673959957095,6.44865,1566.8,1566.5,4.85133434]
[1673959959771,0.066,1566.8,1566.6,0.48513343]
[1673959959933,7.39212732,1566.9,1566.6,6.86838343]
[1673959960145,7.39212732,1566.9,1566.6,6.93438343]
[1673959960983,7.39212732,1566.9,1566.6,0.55113343]
[1673959961198,7.39212732,1566.9,1566.6,1.48513343]
[1673959961769,7.39212732,1566.9,1566.7,0.14851334]
[1673959962342,0.066,1566.9,1566.7,11.10396741]
[1673959962662,1.09893057,1567.0,1566.7,17.55280741]
[1673959963512,1.09893057,1567.0,1566.7,11.16996741]
[1673959963740,1.09893057,1567.0,1566.7,9.71396741]
[1673959963955,1.09893057,1567.0,1566.8,0.97139674]
[1673959965008,2.51509155,1567.0,1566.8,0.97139674]
[1673959965348,2.51509155,1567.0,1566.7,11.16296741]
[1673959965659,2.51509155,1567.0,1566.7,4.78013741]
[1673959965874,2.51509155,1567.0,1566.7,4.71413741]
[1673959966564,1.09893057,1567.0,1566.7,11.09696741]
[1673959966760,1.09893057,1567.0,1566.7,11.16296741]
[1673959966970,1.09893057,1567.0,1566.8,1.11629674]
[1673959967763,2.51509155,1567.0,1566.8,1.11629674]
[1673959968301,1.09893057,1567.0,1566.8,1.11629674]
[1673959968938,1.09893057,1567.0,1566.8,1.11403066]
[1673959969767,1.09893057,1567.0,1566.7,1.67451334]
[1673959970074,1.09893057,1567.0,1566.6,0.066]
[1673959970075,0.94410732,1566.8,1566.6,0.066]
[1673959970282,0.94410732,1566.8,1566.4,18.44737336]
[1673959970283,2.13625175,1566.8,1566.4,18.51337336]
[1673959970494,2.13625175,1566.8,1566.4,28.01381743]
[1673959970651,2.13625175,1566.8,1566.5,2.80138174]
[1673959971190,0.94410732,1566.8,1566.5,9.18503174]
[1673959971546,1.01010732,1566.9,1566.6,1.0]
[1673959971857,0.94410732,1566.9,1566.6,1.00211896]
[1673959972026,2.13786677,1566.9,1566.6,21.34519303]
[1673959972229,2.58109155,1567.0,1566.7,2.1345193]
[1673959972439,2.51509155,1567.0,1566.7,5.1345193]
[1673959972663,2.51509155,1567.0,1566.7,11.5833393]
[1673959973333,0.94410732,1566.9,1566.7,11.5833393]
[1673959973486,1.57098423,1567.0,1566.7,11.5833393]
[1673959973487,1.09893057,1567.0,1566.7,11.5833393]
[1673959973696,1.09893057,1567.0,1566.8,2.15833393]
[1673959973908,1.09893057,1567.0,1566.8,1.15833393]
[1673959974117,0.94410732,1567.0,1566.8,1.15833393]
[1673959974328,0.94410732,1566.9,1566.8,1.15833393]
[1673959974760,0.94410732,1566.9,1566.7,11.5833393]
[1673959974972,9.93620142,1566.9,1566.7,3.066]
[1673959975219,7.39213732,1566.9,1566.6,3.06811896]
[1673959975519,1.01010732,1566.9,1566.6,3.00211896]
[1673959975699,0.94410732,1566.9,1566.6,25.26848303]
[1673959975911,0.94410732,1566.9,1566.7,2.5268483]
[1673959976136,0.94410732,1566.9,1566.7,8.9095583]
[1673959976356,0.94410732,1566.9,1566.7,8.9755583]
[1673959976691,2.3602683,1566.9,1566.7,2.5928483]
[1673959976887,3.55456994,1566.9,1566.7,2.5268483]
[1673959977066,9.93661994,1566.9,1566.6,9.45135896]
[1673959977279,2.13298664,1566.8,1566.6,3.06811896]
[1673959977521,2.13298664,1566.8,1566.6,3.00211896]
[1673959978377,16.31423762,1566.8,1566.6,3.0]
[1673959978690,1.01010732,1566.8,1566.6,3.0]
[1673959978859,0.94410732,1566.8,1566.6,6.68983]
[1673959979053,3.54947999,1566.9,1566.6,6.75583]
[1673959979271,2.3602683,1566.9,1566.6,6.75583]
[1673959979629,3.549363,1566.9,1566.6,13.13908]
[1673959980438,2.3602683,1566.9,1566.6,13.13908]
[1673959980654,3.54933452,1566.9,1566.6,13.13908]
[1673959981929,3.54933452,1566.9,1566.6,19.52233]
[1673959982471,0.94410732,1566.9,1566.6,19.52233]
[1673959982630,0.94410732,1566.8,1566.6,19.52233]
[1673959982841,2.3602683,1566.9,1566.6,19.52233]
[1673959983053,0.94410732,1566.9,1566.6,19.52233]
[1673959983380,2.13313884,1566.9,1566.6,19.52233]
[1673959983613,2.13313884,1566.9,1566.7,1.952233]
[1673959983784,2.13313884,1566.9,1566.7,8.334943]
[1673959983993,2.13313884,1566.9,1566.7,14.783783]
[1673959984570,2.13313884,1566.8,1566.7,14.783783]
[1673959984902,0.94410732,1566.8,1566.7,14.783783]
[1673959985048,2.13313884,1566.8,1566.7,14.783783]
[1673959985259,0.94410732,1566.8,1566.7,14.783783]
[1673959985531,2.13313884,1566.8,1566.7,14.783783]
[1673959988509,2.4262683,1566.9,1566.7,24.6692752]
[1673959988623,0.94410732,1566.9,1566.8,2.46692752]
[1673959988996,2.13554277,1566.9,1566.8,15.23178752]
[1673959989241,2.13554277,1566.9,1566.8,15.29778752]
[1673959989460,1.48216098,1567.0,1566.8,24.79684159]
[1673959989665,0.95305555,1567.1,1566.9,29.55479215]
[1673959989836,0.95305555,1567.2,1567.1,6.38121]
[1673959990054,0.95305555,1567.2,1567.1,6.44721]
[1673959990248,0.96795825,1567.2,1567.1,7.89721]
[1673959991504,0.96795825,1567.2,1567.1,11.01383407]
[1673959991714,0.96795825,1567.2,1567.1,14.01383407]
[1673959992044,0.0149027,1567.2,1567.1,23.3682464]
[1673959995447,0.0149027,1567.2,1567.1,16.9870364]
[1673959995656,0.0149027,1567.2,1567.1,23.3682464]
[1673959995811,0.0149027,1567.2,1567.1,23.3855664]
[1673959996619,0.0149027,1567.2,1567.1,29.7667764]
[1673959996795,0.0149027,1567.2,1567.1,29.7647764]
[1673959997130,0.0149027,1567.2,1567.1,29.7667764]
[1673959997910,0.0149027,1567.2,1567.1,29.7494564]
[1673959998592,0.0149027,1567.2,1567.1,29.7983064]
[1673959999636,0.0149027,1567.2,1567.1,29.7494564]
[1673960000115,0.0149027,1567.2,1567.1,31.2094564]
[1673960000331,0.98903252,1567.6,1567.2,1.0]
[1673960000553,0.98903252,1567.6,1567.5,1.46]
[1673960000809,0.98903252,1567.6,1567.5,7.83958]
[1673960001121,0.03597697,1567.6,1567.5,11.02220407]
[1673960001273,0.03597697,1567.6,1567.5,21.86178407]
[1673960001480,0.03597697,1567.6,1567.5,22.27284399]
[1673960001697,0.03597697,1567.6,1567.5,25.87608139]
[1673960002905,0.03597697,1567.6,1567.5,25.52485147]
[1673960003854,0.58660642,1568.0,1567.5,25.52485147]
[1673960004213,0.52060642,1568.0,1567.6,6.11662407]
[1673960004395,0.52060642,1568.0,1567.7,6.37869]
[1673960004692,0.52060642,1568.0,1567.8,3.0]
[1673960005298,2.46678345,1567.7,1567.4,6.37971]
[1673960005654,2.46678345,1567.7,1567.4,0.066]
[1673960005803,2.46678345,1567.7,1567.3,10.8908]
[1673960005804,2.94538345,1567.7,1567.3,10.8908]
[1673960006533,2.94538345,1567.7,1567.3,0.066]
[1673960006750,2.94538345,1567.7,1567.2,15.28048]
[1673960006970,2.94538345,1567.7,1567.2,18.33078407]
[1673960006971,9.32419345,1567.7,1567.2,18.33078407]
[1673960007192,9.39019345,1567.7,1567.2,29.05558407]
[1673960007974,9.39019345,1567.7,1567.2,10.7908]
[1673960008167,2.39901934,1567.6,1567.2,0.066]
[1673960008322,8.77834934,1567.6,1567.2,3.0]
[1673960008531,8.84434934,1567.6,1567.2,3.0]
[1673960010535,0.4787,1567.5,1567.2,3.0]
[1673960012055,14.68788,1567.5,1567.1,0.066]
[1673960012366,6.38046,1567.3,1566.8,9.28026]
[1673960012684,14.76572,1567.3,1566.8,0.066]
[1673960012898,14.76572,1567.3,1566.7,10.7885]
[1673960013050,9.76572,1567.3,1566.7,13.95148407]
[1673960013264,9.76572,1567.3,1566.8,1.39514841]
[1673960013835,10.71432757,1567.3,1566.8,1.39514841]
[1673960014201,11.915588,1567.3,1566.8,1.39514841]
[1673960014412,10.71432757,1567.3,1566.8,1.39514841]
[1673960014624,10.71432757,1567.3,1566.8,4.39514841]
[1673960014832,13.1920446,1567.3,1566.8,4.39514841]
[1673960015248,2.0048,1567.3,1566.8,20.27662248]
[1673960015479,0.4788,1567.3,1566.9,9.49842407]
[1673960015694,0.4788,1567.3,1566.9,9.56442407]
[1673960015937,0.4788,1567.3,1566.9,12.24378932]
[1673960016535,0.066,1567.4,1567.0,3.11662407]
[1673960016744,1.42730757,1567.5,1567.1,15.87888407]
[1673960016745,0.4787,1567.5,1567.1,15.87888407]
[1673960016955,0.4787,1567.5,1567.1,15.94488407]
[1673960017166,0.4787,1567.5,1567.2,1.59448841]
[1673960017429,0.4787,1567.5,1567.2,7.97512841]
[1673960017640,0.4787,1567.5,1567.2,8.04112841]
[1673960018232,0.4787,1567.5,1567.2,17.53855248]
[1673960019335,1.42730757,1567.6,1567.2,17.53855248]
[1673960019553,1.42730757,1567.6,1567.3,1.75385525]
[1673960019743,2.23905628,1567.6,1567.3,1.75385525]
[1673960019929,21.26538347,1567.7,1567.4,3.11662407]
[1673960019930,6.57927615,1567.7,1567.4,3.11662407]
[1673960020141,3.95975202,1567.7,1567.4,3.11662407]
[1673960020371,3.89399102,1567.7,1567.5,12.75916]
[1673960020611,3.41539102,1567.7,1567.6,1.275916]
[1673960020757,4.22728157,1567.7,1567.6,1.275916]
[1673960020971,4.22727944,1567.7,1567.6,1.275916]
[1673960021303,2.46678345,1567.7,1567.6,1.275916]
[1673960021738,2.46678345,1567.7,1567.6,7.655086]
[1673960021915,2.46678345,1567.7,1567.6,7.721086]
[1673960022129,2.46678345,1567.7,1567.6,17.21688007]
[1673960022592,2.46678345,1567.7,1567.6,1.341916]
[1673960022754,2.46678345,1567.7,1567.5,3.0]
[1673960023661,3.41539102,1567.7,1567.5,9.37954]
[1673960023826,2.46678345,1567.7,1567.5,9.44554]
[1673960026170,2.46678345,1567.7,1567.5,15.82512]
[1673960026387,2.46678345,1567.7,1567.6,2.582512]
[1673960026595,2.46678345,1567.7,1567.6,23.83664607]
[1673960026745,2.46678345,1567.7,1567.6,23.90264607]
[1673960027307,2.46678345,1567.7,1567.6,26.90264607]
[1673960028446,2.46678345,1567.7,1567.6,27.35464607]
[1673960028675,2.46678345,1567.7,1567.6,26.90264607]
[1673960029268,2.46678345,1567.7,1567.6,28.36264607]
[1673960034205,0.065761,1567.9,1567.6,28.36264607]
[1673960034206,0.065761,1567.9,1567.7,1.0]
[1673960034421,0.94860757,1568.0,1567.8,19.23508]
[1673960034634,0.94860757,1568.0,1567.8,19.30108]
[1673960035057,0.94860757,1568.0,1567.8,0.166]
[1673960035381,15.19162994,1568.1,1567.7,25.79694407]
[1673960035742,1.6595228,1568.0,1567.7,25.79694407]
[1673960035913,1.65937497,1568.0,1567.7,25.79694407]
[1673960036104,0.94860757,1568.0,1567.7,25.79694407]
[1673960036519,1.65951212,1568.0,1567.7,25.79694407]
[1673960036784,1.65951212,1568.0,1567.7,25.31834407]